{"text_format":"3","workbook":"xlsx","n_sheets":1,"sheets":["Протокол ШЭ ВОШ по предмету"],"not_rendered":{"external_links":1,"defined_names":1},"read":"whole","date_system":"1900"}

{"sheet":"Протокол ШЭ ВОШ по предмету","index":0,"n_rows":158,"n_cols":15,"rows_kept":158}
["№","Фамилия","Имя","Отчество","Дата рождения","Пол","Участник с ОВЗ (да/нет)","Класс обучения","Класс участия","Балл","Максимальный балл","Статус","Призёр муниципального этапа прошлого года","ФИО учителя","Место работы учителя"]
[1,{"$f":"'[1]5Б'!B2","v":"Дарьина "},{"$f":"'[1]5Б'!C2","v":"Мария "},{"$f":"'[1]5Б'!D2","v":"Витальевна"},{"$f":"'[1]5Б'!E2","v":"2010-10-12"},{"$f":"'[1]5Б'!F2","v":"Ж"},{"$f":"'[1]5Б'!G2","v":"нет"},5,5,{"$f":"'[1]5Б'!J2","v":52},{"$f":"'[1]5Б'!K2","v":100},{"$f":"'[1]5Б'!L2","v":"Призер"},{"$f":"'[1]5Б'!M2","v":"нет"},{"$f":"'[1]5Б'!N2","v":"Ахметова Римма Масхутовна"},"Муниципальное бюджетное общеобразовательное учреждение \"Многопрофильный лицей №37\" Нижнекамского муниципального района Республики Татарстан"]
[2,{"$f":"'[1]5Б'!B3","v":"Хамидуллин "},{"$f":"'[1]5Б'!C3","v":"Ислам "},{"$f":"'[1]5Б'!D3","v":"Ильмирович"},{"$f":"'[1]5Б'!E3","v":"2011-06-17"},{"$f":"'[1]5Б'!F3","v":"М"},{"$f":"'[1]5Б'!G3","v":"нет"},5,5,{"$f":"'[1]5Б'!J3","v":52},{"$f":"'[1]5Б'!K3","v":100},{"$f":"'[1]5Б'!L3","v":"Призер"},{"$f":"'[1]5Б'!M3","v":"нет"},{"$f":"'[1]5Б'!N3","v":"Ахметова Римма Масхутовна"},"Муниципальное бюджетное общеобразовательное учреждение \"Многопрофильный лицей №37\" Нижнекамского муниципального района Республики Татарстан"]
[3,{"$f":"'[1]5Б'!B4","v":"Салаватова  "},{"$f":"'[1]5Б'!C4","v":"Аделина"},{"$f":"'[1]5Б'!D4","v":"Ринатовна"},{"$f":"'[1]5Б'!E4","v":"2011-02-09"},{"$f":"'[1]5Б'!F4","v":"Ж"},{"$f":"'[1]5Б'!G4","v":"нет"},5,5,{"$f":"'[1]5Б'!J4","v":45},{"$f":"'[1]5Б'!K4","v":100},"Участник",{"$f":"'[1]5Б'!M4","v":"нет"},{"$f":"'[1]5Б'!N4","v":"Ахметова Римма Масхутовна"},"Муниципальное бюджетное общеобразовательное учреждение \"Многопрофильный лицей №37\" Нижнекамского муниципального района Республики Татарстан"]
[4,{"$f":"'[1]5Б'!B5","v":"Гатина  "},{"$f":"'[1]5Б'!C5","v":"Лейла"},{"$f":"'[1]5Б'!D5","v":"Ринатовна"},{"$f":"'[1]5Б'!E5","v":"2011-04-07"},{"$f":"'[1]5Б'!F5","v":"Ж"},{"$f":"'[1]5Б'!G5","v":"нет"},5,5,{"$f":"'[1]5Б'!J5","v":38},{"$f":"'[1]5Б'!K5","v":100},{"$f":"'[1]5Б'!L5","v":"Участник"},{"$f":"'[1]5Б'!M5","v":"нет"},{"$f":"'[1]5Б'!N5","v":"Ахметова Римма Масхутовна"},"Муниципальное бюджетное общеобразовательное учреждение \"Многопрофильный лицей №37\" Нижнекамского муниципального района Республики Татарстан"]
[5,{"$f":"'[1]5Б'!B6","v":"Бигеева  "},{"$f":"'[1]5Б'!C6","v":"София"},{"$f":"'[1]5Б'!D6","v":"Рафаэлевна"},{"$f":"'[1]5Б'!E6","v":"2011-09-22"},{"$f":"'[1]5Б'!F6","v":"Ж"},{"$f":"'[1]5Б'!G6","v":"нет"},5,5,{"$f":"'[1]5Б'!J6","v":32},{"$f":"'[1]5Б'!K6","v":100},{"$f":"'[1]5Б'!L6","v":"Участник"},{"$f":"'[1]5Б'!M6","v":"нет"},{"$f":"'[1]5Б'!N6","v":"Ахметова Римма Масхутовна"},"Муниципальное бюджетное общеобразовательное учреждение \"Многопрофильный лицей №37\" Нижнекамского муниципального района Республики Татарстан"]
[6,{"$f":"'[1]5Б'!B7","v":"Подбержина "},{"$f":"'[1]5Б'!C7","v":"Елизавета "},{"$f":"'[1]5Б'!D7","v":"Андреевна"},{"$f":"'[1]5Б'!E7","v":"2011-06-27"},{"$f":"'[1]5Б'!F7","v":"Ж"},{"$f":"'[1]5Б'!G7","v":"нет"},5,5,{"$f":"'[1]5Б'!J7","v":29},{"$f":"'[1]5Б'!K7","v":100},{"$f":"'[1]5Б'!L7","v":"Участник"},{"$f":"'[1]5Б'!M7","v":"нет"},{"$f":"'[1]5Б'!N7","v":"Ахметова Римма Масхутовна"},"Муниципальное бюджетное общеобразовательное учреждение \"Многопрофильный лицей №37\" Нижнекамского муниципального района Республики Татарстан"]
[7,{"$f":"'[1]5Б'!B8","v":"Ульянин "},{"$f":"'[1]5Б'!C8","v":"Николай "},{"$f":"'[1]5Б'!D8","v":"Владимирович"},{"$f":"'[1]5Б'!E8","v":"2011-03-15"},{"$f":"'[1]5Б'!F8","v":"М"},{"$f":"'[1]5Б'!G8","v":"нет"},5,5,{"$f":"'[1]5Б'!J8","v":29},{"$f":"'[1]5Б'!K8","v":100},{"$f":"'[1]5Б'!L8","v":"Участник"},{"$f":"'[1]5Б'!M8","v":"нет"},{"$f":"'[1]5Б'!N8","v":"Ахметова Римма Масхутовна"},"Муниципальное бюджетное общеобразовательное учреждение \"Многопрофильный лицей №37\" Нижнекамского муниципального района Республики Татарстан"]
[8,{"$f":"'[1]5Б'!B9","v":"Миронов "},{"$f":"'[1]5Б'!C9","v":"Ярослав "},{"$f":"'[1]5Б'!D9","v":"Александрович"},{"$f":"'[1]5Б'!E9","v":"2010-10-24"},{"$f":"'[1]5Б'!F9","v":"М"},{"$f":"'[1]5Б'!G9","v":"нет"},5,5,{"$f":"'[1]5Б'!J9","v":27},{"$f":"'[1]5Б'!K9","v":100},{"$f":"'[1]5Б'!L9","v":"Участник"},{"$f":"'[1]5Б'!M9","v":"нет"},{"$f":"'[1]5Б'!N9","v":"Ахметова Римма Масхутовна"},"Муниципальное бюджетное общеобразовательное учреждение \"Многопрофильный лицей №37\" Нижнекамского муниципального района Республики Татарстан"]
[9,{"$f":"'[1]5Б'!B10","v":"Утробин  "},{"$f":"'[1]5Б'!C10","v":"Алексей"},{"$f":"'[1]5Б'!D10","v":"Ильич"},{"$f":"'[1]5Б'!E10","v":"2011-08-12"},{"$f":"'[1]5Б'!F10","v":"М"},{"$f":"'[1]5Б'!G10","v":"нет"},5,5,{"$f":"'[1]5Б'!J10","v":27},{"$f":"'[1]5Б'!K10","v":100},{"$f":"'[1]5Б'!L10","v":"Участник"},{"$f":"'[1]5Б'!M10","v":"нет"},{"$f":"'[1]5Б'!N10","v":"Ахметова Римма Масхутовна"},"Муниципальное бюджетное общеобразовательное учреждение \"Многопрофильный лицей №37\" Нижнекамского муниципального района Республики Татарстан"]
[10,{"$f":"'[1]5Б'!B11","v":"Кагарманов "},{"$f":"'[1]5Б'!C11","v":"Арсений "},{"$f":"'[1]5Б'!D11","v":"Тимурович"},{"$f":"'[1]5Б'!E11","v":"2010-12-29"},{"$f":"'[1]5Б'!F11","v":"М"},{"$f":"'[1]5Б'!G11","v":"нет"},5,5,{"$f":"'[1]5Б'!J11","v":26},{"$f":"'[1]5Б'!K11","v":100},{"$f":"'[1]5Б'!L11","v":"Участник"},{"$f":"'[1]5Б'!M11","v":"нет"},{"$f":"'[1]5Б'!N11","v":"Ахметова Римма Масхутовна"},"Муниципальное бюджетное общеобразовательное учреждение \"Многопрофильный лицей №37\" Нижнекамского муниципального района Республики Татарстан"]
[11,{"$f":"'[1]5Б'!B12","v":"Ильясов "},{"$f":"'[1]5Б'!C12","v":"Тимур "},{"$f":"'[1]5Б'!D12","v":"Айдарович"},{"$f":"'[1]5Б'!E12","v":"2010-12-09"},{"$f":"'[1]5Б'!F12","v":"М"},{"$f":"'[1]5Б'!G12","v":"нет"},5,5,{"$f":"'[1]5Б'!J12","v":25},{"$f":"'[1]5Б'!K12","v":100},{"$f":"'[1]5Б'!L12","v":"Участник"},{"$f":"'[1]5Б'!M12","v":"нет"},{"$f":"'[1]5Б'!N12","v":"Ахметова Римма Масхутовна"},"Муниципальное бюджетное общеобразовательное учреждение \"Многопрофильный лицей №37\" Нижнекамского муниципального района Республики Татарстан"]
[12,{"$f":"'[1]5Б'!B13","v":"Королёв "},{"$f":"'[1]5Б'!C13","v":"Кирилл "},{"$f":"'[1]5Б'!D13","v":"Николаевич"},{"$f":"'[1]5Б'!E13","v":"2011-02-07"},{"$f":"'[1]5Б'!F13","v":"М"},{"$f":"'[1]5Б'!G13","v":"нет"},5,5,{"$f":"'[1]5Б'!J13","v":25},{"$f":"'[1]5Б'!K13","v":100},{"$f":"'[1]5Б'!L13","v":"Участник"},{"$f":"'[1]5Б'!M13","v":"нет"},{"$f":"'[1]5Б'!N13","v":"Ахметова Римма Масхутовна"},"Муниципальное бюджетное общеобразовательное учреждение \"Многопрофильный лицей №37\" Нижнекамского муниципального района Республики Татарстан"]
[13,{"$f":"'[1]5Б'!B14","v":"Миронов "},{"$f":"'[1]5Б'!C14","v":"Егор "},{"$f":"'[1]5Б'!D14","v":"Александрович"},{"$f":"'[1]5Б'!E14","v":"2010-12-13"},{"$f":"'[1]5Б'!F14","v":"М"},{"$f":"'[1]5Б'!G14","v":"нет"},5,5,{"$f":"'[1]5Б'!J14","v":24},{"$f":"'[1]5Б'!K14","v":100},{"$f":"'[1]5Б'!L14","v":"Участник"},{"$f":"'[1]5Б'!M14","v":"нет"},{"$f":"'[1]5Б'!N14","v":"Ахметова Римма Масхутовна"},"Муниципальное бюджетное общеобразовательное учреждение \"Многопрофильный лицей №37\" Нижнекамского муниципального района Республики Татарстан"]
[14,{"$f":"'[1]5Б'!B15","v":"Новикова "},{"$f":"'[1]5Б'!C15","v":"Алена "},{"$f":"'[1]5Б'!D15","v":"Артемовна"},{"$f":"'[1]5Б'!E15","v":"2011-08-03"},{"$f":"'[1]5Б'!F15","v":"Ж"},{"$f":"'[1]5Б'!G15","v":"нет"},5,5,{"$f":"'[1]5Б'!J15","v":22},{"$f":"'[1]5Б'!K15","v":100},{"$f":"'[1]5Б'!L15","v":"Участник"},{"$f":"'[1]5Б'!M15","v":"нет"},{"$f":"'[1]5Б'!N15","v":"Ахметова Римма Масхутовна"},"Муниципальное бюджетное общеобразовательное учреждение \"Многопрофильный лицей №37\" Нижнекамского муниципального района Республики Татарстан"]
[15,{"$f":"'[1]5Б'!B16","v":"Мухаметдинова "},{"$f":"'[1]5Б'!C16","v":"Кира "},{"$f":"'[1]5Б'!D16","v":"Ленаровна"},{"$f":"'[1]5Б'!E16","v":"2011-03-21"},{"$f":"'[1]5Б'!F16","v":"Ж"},{"$f":"'[1]5Б'!G16","v":"нет"},5,5,{"$f":"'[1]5Б'!J16","v":21},{"$f":"'[1]5Б'!K16","v":100},{"$f":"'[1]5Б'!L16","v":"Участник"},{"$f":"'[1]5Б'!M16","v":"нет"},{"$f":"'[1]5Б'!N16","v":"Ахметова Римма Масхутовна"},"Муниципальное бюджетное общеобразовательное учреждение \"Многопрофильный лицей №37\" Нижнекамского муниципального района Республики Татарстан"]
[16,{"$f":"'[1]5Б'!B17","v":"Кожевников"},{"$f":"'[1]5Б'!C17","v":" Илья "},{"$f":"'[1]5Б'!D17","v":"Михайлович"},{"$f":"'[1]5Б'!E17","v":"2011-08-20"},{"$f":"'[1]5Б'!F17","v":"М"},{"$f":"'[1]5Б'!G17","v":"нет"},5,5,{"$f":"'[1]5Б'!J17","v":19},{"$f":"'[1]5Б'!K17","v":100},{"$f":"'[1]5Б'!L17","v":"Участник"},{"$f":"'[1]5Б'!M17","v":"нет"},{"$f":"'[1]5Б'!N17","v":"Ахметова Римма Масхутовна"},"Муниципальное бюджетное общеобразовательное учреждение \"Многопрофильный лицей №37\" Нижнекамского муниципального района Республики Татарстан"]
[17,{"$f":"'[1]5Б'!B18","v":"Рахматуллин "},{"$f":"'[1]5Б'!C18","v":" Реваль"},{"$f":"'[1]5Б'!D18","v":"Раилевич"},{"$f":"'[1]5Б'!E18","v":"2011-07-16"},{"$f":"'[1]5Б'!F18","v":"М"},{"$f":"'[1]5Б'!G18","v":"нет"},5,5,{"$f":"'[1]5Б'!J18","v":19},{"$f":"'[1]5Б'!K18","v":100},{"$f":"'[1]5Б'!L18","v":"Участник"},{"$f":"'[1]5Б'!M18","v":"нет"},{"$f":"'[1]5Б'!N18","v":"Ахметова Римма Масхутовна"},"Муниципальное бюджетное общеобразовательное учреждение \"Многопрофильный лицей №37\" Нижнекамского муниципального района Республики Татарстан"]
[18,{"$f":"'[1]5Б'!B19","v":"Чувашов  "},{"$f":"'[1]5Б'!C19","v":"Данил"},{"$f":"'[1]5Б'!D19","v":"Михайлович"},{"$f":"'[1]5Б'!E19","v":"2010-11-20"},{"$f":"'[1]5Б'!F19","v":"М"},{"$f":"'[1]5Б'!G19","v":"нет"},5,5,{"$f":"'[1]5Б'!J19","v":18},{"$f":"'[1]5Б'!K19","v":100},{"$f":"'[1]5Б'!L19","v":"Участник"},{"$f":"'[1]5Б'!M19","v":"нет"},{"$f":"'[1]5Б'!N19","v":"Ахметова Римма Масхутовна"},"Муниципальное бюджетное общеобразовательное учреждение \"Многопрофильный лицей №37\" Нижнекамского муниципального района Республики Татарстан"]
[19,{"$f":"'[1]5Б'!B20","v":"Панадий "},{"$f":"'[1]5Б'!C20","v":"Сергей "},{"$f":"'[1]5Б'!D20","v":"Дмитриевич"},{"$f":"'[1]5Б'!E20","v":"2011-01-14"},{"$f":"'[1]5Б'!F20","v":"М"},{"$f":"'[1]5Б'!G20","v":"нет"},5,5,{"$f":"'[1]5Б'!J20","v":18},{"$f":"'[1]5Б'!K20","v":100},{"$f":"'[1]5Б'!L20","v":"Участник"},{"$f":"'[1]5Б'!M20","v":"нет"},{"$f":"'[1]5Б'!N20","v":"Ахметова Римма Масхутовна"},"Муниципальное бюджетное общеобразовательное учреждение \"Многопрофильный лицей №37\" Нижнекамского муниципального района Республики Татарстан"]
[20,{"$f":"'[1]5Б'!B21","v":"Хисметова  "},{"$f":"'[1]5Б'!C21","v":"Самира"},{"$f":"'[1]5Б'!D21","v":"Алмазовна"},{"$f":"'[1]5Б'!E21","v":"2011-12-13"},{"$f":"'[1]5Б'!F21","v":"Ж"},{"$f":"'[1]5Б'!G21","v":"нет"},5,5,{"$f":"'[1]5Б'!J21","v":17},{"$f":"'[1]5Б'!K21","v":100},{"$f":"'[1]5Б'!L21","v":"Участник"},{"$f":"'[1]5Б'!M21","v":"нет"},{"$f":"'[1]5Б'!N21","v":"Ахметова Римма Масхутовна"},"Муниципальное бюджетное общеобразовательное учреждение \"Многопрофильный лицей №37\" Нижнекамского муниципального района Республики Татарстан"]
[21,{"$f":"'[1]5Б'!B22","v":"Чумакова  "},{"$f":"'[1]5Б'!C22","v":"Милена"},{"$f":"'[1]5Б'!D22","v":"Всеволодовна"},{"$f":"'[1]5Б'!E22","v":"2011-03-16"},{"$f":"'[1]5Б'!F22","v":"Ж"},{"$f":"'[1]5Б'!G22","v":"нет"},5,5,{"$f":"'[1]5Б'!J22","v":17},{"$f":"'[1]5Б'!K22","v":100},{"$f":"'[1]5Б'!L22","v":"Участник"},{"$f":"'[1]5Б'!M22","v":"нет"},{"$f":"'[1]5Б'!N22","v":"Ахметова Римма Масхутовна"},"Муниципальное бюджетное общеобразовательное учреждение \"Многопрофильный лицей №37\" Нижнекамского муниципального района Республики Татарстан"]
[22,{"$f":"'[1]5Б'!B23","v":"Петров  "},{"$f":"'[1]5Б'!C23","v":"Артем"},{"$f":"'[1]5Б'!D23","v":"Эдуардович"},{"$f":"'[1]5Б'!E23","v":"2011-09-12"},{"$f":"'[1]5Б'!F23","v":"М"},{"$f":"'[1]5Б'!G23","v":"нет"},5,5,{"$f":"'[1]5Б'!J23","v":17},{"$f":"'[1]5Б'!K23","v":100},{"$f":"'[1]5Б'!L23","v":"Участник"},{"$f":"'[1]5Б'!M23","v":"нет"},{"$f":"'[1]5Б'!N23","v":"Ахметова Римма Масхутовна"},"Муниципальное бюджетное общеобразовательное учреждение \"Многопрофильный лицей №37\" Нижнекамского муниципального района Республики Татарстан"]
[23,{"$f":"'[1]5Б'!B24","v":"Кашин "},{"$f":"'[1]5Б'!C24","v":"Кирилл "},{"$f":"'[1]5Б'!D24","v":"Максимович"},{"$f":"'[1]5Б'!E24","v":"2011-02-02"},{"$f":"'[1]5Б'!F24","v":"М"},{"$f":"'[1]5Б'!G24","v":"нет"},5,5,{"$f":"'[1]5Б'!J24","v":16},{"$f":"'[1]5Б'!K24","v":100},{"$f":"'[1]5Б'!L24","v":"Участник"},{"$f":"'[1]5Б'!M24","v":"нет"},{"$f":"'[1]5Б'!N24","v":"Ахметова Римма Масхутовна"},"Муниципальное бюджетное общеобразовательное учреждение \"Многопрофильный лицей №37\" Нижнекамского муниципального района Республики Татарстан"]
[24,{"$f":"'[1]5Б'!B25","v":"Загидуллина "},{"$f":"'[1]5Б'!C25","v":"Диляра"},{"$f":"'[1]5Б'!D25","v":" Райхановна"},{"$f":"'[1]5Б'!E25","v":"2011-03-05"},{"$f":"'[1]5Б'!F25","v":"Ж"},{"$f":"'[1]5Б'!G25","v":"нет"},5,5,{"$f":"'[1]5Б'!J25","v":13},{"$f":"'[1]5Б'!K25","v":100},{"$f":"'[1]5Б'!L25","v":"Участник"},{"$f":"'[1]5Б'!M25","v":"нет"},{"$f":"'[1]5Б'!N25","v":"Ахметова Римма Масхутовна"},"Муниципальное бюджетное общеобразовательное учреждение \"Многопрофильный лицей №37\" Нижнекамского муниципального района Республики Татарстан"]
[25,{"$f":"'[1]5Б'!B26","v":"Гильмуллина"},{"$f":"'[1]5Б'!C26","v":" Айсылу "},{"$f":"'[1]5Б'!D26","v":"Ильнуровна"},{"$f":"'[1]5Б'!E26","v":"2011-02-01"},{"$f":"'[1]5Б'!F26","v":"Ж"},{"$f":"'[1]5Б'!G26","v":"нет"},5,5,{"$f":"'[1]5Б'!J26","v":12},{"$f":"'[1]5Б'!K26","v":100},{"$f":"'[1]5Б'!L26","v":"Участник"},{"$f":"'[1]5Б'!M26","v":"нет"},{"$f":"'[1]5Б'!N26","v":"Ахметова Римма Масхутовна"},"Муниципальное бюджетное общеобразовательное учреждение \"Многопрофильный лицей №37\" Нижнекамского муниципального района Республики Татарстан"]
[26,{"$f":"'[1]5Б'!B27","v":"Артемьев  "},{"$f":"'[1]5Б'!C27","v":"Даниил"},{"$f":"'[1]5Б'!D27","v":"Александрович"},{"$f":"'[1]5Б'!E27","v":"2011-03-10"},{"$f":"'[1]5Б'!F27","v":"М"},{"$f":"'[1]5Б'!G27","v":"нет"},5,5,{"$f":"'[1]5Б'!J27","v":11},{"$f":"'[1]5Б'!K27","v":100},{"$f":"'[1]5Б'!L27","v":"Участник"},{"$f":"'[1]5Б'!M27","v":"нет"},{"$f":"'[1]5Б'!N27","v":"Ахметова Римма Масхутовна"},"Муниципальное бюджетное общеобразовательное учреждение \"Многопрофильный лицей №37\" Нижнекамского муниципального района Республики Татарстан"]
[27,{"$f":"'[1]5Б'!B28","v":"Усманова"},{"$f":"'[1]5Б'!C28","v":" Амира"},{"$f":"'[1]5Б'!D28","v":" Алмазовна"},{"$f":"'[1]5Б'!E28","v":"2011-02-17"},{"$f":"'[1]5Б'!F28","v":"Ж"},{"$f":"'[1]5Б'!G28","v":"нет"},5,5,{"$f":"'[1]5Б'!J28","v":9},{"$f":"'[1]5Б'!K28","v":100},{"$f":"'[1]5Б'!L28","v":"Участник"},{"$f":"'[1]5Б'!M28","v":"нет"},{"$f":"'[1]5Б'!N28","v":"Ахметова Римма Масхутовна"},"Муниципальное бюджетное общеобразовательное учреждение \"Многопрофильный лицей №37\" Нижнекамского муниципального района Республики Татарстан"]
[28,{"$f":"'[1]5Б'!B29","v":"Керимова "},{"$f":"'[1]5Б'!C29","v":"Лилита "},{"$f":"'[1]5Б'!D29","v":"Руслановна"},{"$f":"'[1]5Б'!E29","v":"2011-07-05"},{"$f":"'[1]5Б'!F29","v":"Ж"},{"$f":"'[1]5Б'!G29","v":"нет"},5,5,{"$f":"'[1]5Б'!J29","v":8},{"$f":"'[1]5Б'!K29","v":100},{"$f":"'[1]5Б'!L29","v":"Участник"},{"$f":"'[1]5Б'!M29","v":"нет"},{"$f":"'[1]5Б'!N29","v":"Ахметова Римма Масхутовна"},"Муниципальное бюджетное общеобразовательное учреждение \"Многопрофильный лицей №37\" Нижнекамского муниципального района Республики Татарстан"]
[29,{"$f":"'[1]5Б'!B30","v":"Ваструкова  "},{"$f":"'[1]5Б'!C30","v":"Екатерина"},{"$f":"'[1]5Б'!D30","v":"Андреевна"},{"$f":"'[1]5Б'!E30","v":"2010-11-27"},{"$f":"'[1]5Б'!F30","v":"Ж"},{"$f":"'[1]5Б'!G30","v":"нет"},5,5,{"$f":"'[1]5Б'!J30","v":6},{"$f":"'[1]5Б'!K30","v":100},{"$f":"'[1]5Б'!L30","v":"Участник"},{"$f":"'[1]5Б'!M30","v":"нет"},{"$f":"'[1]5Б'!N30","v":"Ахметова Римма Масхутовна"},"Муниципальное бюджетное общеобразовательное учреждение \"Многопрофильный лицей №37\" Нижнекамского муниципального района Республики Татарстан"]
[30,"Минеева","Дарья","Александровна","30.10.2010","Ж","нет",5,5,25,100,"Участник","нет","Кутлугильдина Лилия Ильшатовна ","Муниципальное бюджетное общеобразовательное учреждение \"Многопрофильный лицей №37\" Нижнекамского муниципального района Республики Татарстан"]
[31,"Кузьмина","Арина","Андреевна","22.01.2011","Ж","нет",5,5,51,100,"Призер","нет","Кутлугильдина Лилия Ильшатовна ","Муниципальное бюджетное общеобразовательное учреждение \"Многопрофильный лицей №37\" Нижнекамского муниципального района Республики Татарстан"]
[32,"Ильмухина","Марьяна","Игоревна","14.10.2010","Ж","нет",5,5,29,100,"Участник","нет","Кутлугильдина Лилия Ильшатовна ","Муниципальное бюджетное общеобразовательное учреждение \"Многопрофильный лицей №37\" Нижнекамского муниципального района Республики Татарстан"]
[33,"Хисматов","Рустам","Ленарович","15.01.2011","М","нет",5,5,19,100,"Участник","нет","Кутлугильдина Лилия Ильшатовна ","Муниципальное бюджетное общеобразовательное учреждение \"Многопрофильный лицей №37\" Нижнекамского муниципального района Республики Татарстан"]
[34,"Хуснутдинова","Камила","Маратовна","21.03.2011","Ж","нет",5,5,40,100,"Участник","нет","Кутлугильдина Лилия Ильшатовна ","Муниципальное бюджетное общеобразовательное учреждение \"Многопрофильный лицей №37\" Нижнекамского муниципального района Республики Татарстан"]
[35,"Сахабутдинова","Диля","Рафисовна","30.06.2011","Ж","нет",5,5,51,100,"Призер","нет","Кутлугильдина Лилия Ильшатовна ","Муниципальное бюджетное общеобразовательное учреждение \"Многопрофильный лицей №37\" Нижнекамского муниципального района Республики Татарстан"]
[36,"Ганиева","Зарина","Альбертовна","18.04.2011","Ж","нет",5,5,22,100,"Участник","нет","Кутлугильдина Лилия Ильшатовна ","Муниципальное бюджетное общеобразовательное учреждение \"Многопрофильный лицей №37\" Нижнекамского муниципального района Республики Татарстан"]
[37,"Гайнутдинова","Динара","Дамировна","25.04.2011","Ж","нет",5,5,26,100,"Участник","нет","Кутлугильдина Лилия Ильшатовна ","Муниципальное бюджетное общеобразовательное учреждение \"Многопрофильный лицей №37\" Нижнекамского муниципального района Республики Татарстан"]
[38,"Лебедев","Виталий","Андреевич","11.10.2010","М","нет",5,5,35,100,"Участник","нет","Кутлугильдина Лилия Ильшатовна ","Муниципальное бюджетное общеобразовательное учреждение \"Многопрофильный лицей №37\" Нижнекамского муниципального района Республики Татарстан"]
[39,"Мингазова","Зарина","Рамилевна","29.04.2011","Ж","нет",5,5,33,100,"Участник","нет","Кутлугильдина Лилия Ильшатовна ","Муниципальное бюджетное общеобразовательное учреждение \"Многопрофильный лицей №37\" Нижнекамского муниципального района Республики Татарстан"]
[40,"Ахметжанова","Лейла","Разумовна","02.06.2011","Ж","нет",5,5,21,100,"Участник","нет","Кутлугильдина Лилия Ильшатовна ","Муниципальное бюджетное общеобразовательное учреждение \"Многопрофильный лицей №37\" Нижнекамского муниципального района Республики Татарстан"]
[41,"Ибнагимова","Камиля","Руслановна","18.08.2011","Ж","нет",5,5,16,100,"Участник","нет","Кутлугильдина Лилия Ильшатовна ","Муниципальное бюджетное общеобразовательное учреждение \"Многопрофильный лицей №37\" Нижнекамского муниципального района Республики Татарстан"]
[42,"Шарипянов","Амир","Ниязович","22.09.2011","М","нет",5,5,46,100,"Участник","нет","Кутлугильдина Лилия Ильшатовна ","Муниципальное бюджетное общеобразовательное учреждение \"Многопрофильный лицей №37\" Нижнекамского муниципального района Республики Татарстан"]
[43,"Мингараева","Аделя","Ленаровна","14.10.2011","Ж","нет",5,5,23,100,"Участник","нет","Кутлугильдина Лилия Ильшатовна ","Муниципальное бюджетное общеобразовательное учреждение \"Многопрофильный лицей №37\" Нижнекамского муниципального района Республики Татарстан"]
[44,"Сахабиев","Руслан","Рустамович","08.12.2010","М","нет",5,5,27,100,"Участник","нет","Кутлугильдина Лилия Ильшатовна ","Муниципальное бюджетное общеобразовательное учреждение \"Многопрофильный лицей №37\" Нижнекамского муниципального района Республики Татарстан"]
[45,"Саитова","Динара","Эдуардовна","16.01.2010","Ж","нет",5,5,28,100,"Участник","нет","Кутлугильдина Лилия Ильшатовна ","Муниципальное бюджетное общеобразовательное учреждение \"Многопрофильный лицей №37\" Нижнекамского муниципального района Республики Татарстан"]
[46,"Гимазетдинов","Артем","Русланович","09.05.2011","М","нет",5,5,21,100,"Участник","нет","Кутлугильдина Лилия Ильшатовна ","Муниципальное бюджетное общеобразовательное учреждение \"Многопрофильный лицей №37\" Нижнекамского муниципального района Республики Татарстан"]
[47,"Багаутдинова","Аделя","Ильнаровна","19.11.2011","М","нет",5,5,28,100,"Участник","нет","Кутлугильдина Лилия Ильшатовна ","Муниципальное бюджетное общеобразовательное учреждение \"Многопрофильный лицей №37\" Нижнекамского муниципального района Республики Татарстан"]
[48,"Шавалиев","Рузаль","Русланович ","2011-10-30","М","нет",5,5,17,100,"Участник","нет","Кутлугильдина Лилия Ильшатовна ","Муниципальное бюджетное общеобразовательное учреждение \"Многопрофильный лицей №37\" Нижнекамского муниципального района Республики Татарстан"]
[49,"Гильфанова","Дина","Айдаровна","24.04.2011","Ж","нет",5,5,17,100,"Участник","нет","Кутлугильдина Лилия Ильшатовна ","Муниципальное бюджетное общеобразовательное учреждение \"Многопрофильный лицей №37\" Нижнекамского муниципального района Республики Татарстан"]
[50,"Асмандияров","Радик","Рафаэлевич","2011-01-04","М","нет",5,5,27,100,"Участник","нет","Кутлугильдина Лилия Ильшатовна ","Муниципальное бюджетное общеобразовательное учреждение \"Многопрофильный лицей №37\" Нижнекамского муниципального района Республики Татарстан"]
[51,"Бадртдинова ","Алина ","Руслановна","2010-05-19","ж","нет",6,6,53,100,"Победитель","нет","Голованов Владимир Владимирович","Муниципальное бюджетное общеобразовательное учреждение \"Многопрофильный лицей №37\" Нижнекамского муниципального района Республики Татарстан"]
[52,"Сафин ","Амир","Ренатович","2009-12-18","м","нет",6,6,51,100,"Призер","нет","Голованов Владимир Владимирович","Муниципальное бюджетное общеобразовательное учреждение \"Многопрофильный лицей №37\" Нижнекамского муниципального района Республики Татарстан"]
[53,"Сабирьянов ","Рузаль","Маратович","2010-01-13","м","нет",6,6,21,100,"Участник","нет","Голованов Владимир Владимирович","Муниципальное бюджетное общеобразовательное учреждение \"Многопрофильный лицей №37\" Нижнекамского муниципального района Республики Татарстан"]
[54,"Гришин ","Егор","Максимович","2010-04-04","м","нет",6,6,20,100,"Участник","нет","Голованов Владимир Владимирович","Муниципальное бюджетное общеобразовательное учреждение \"Многопрофильный лицей №37\" Нижнекамского муниципального района Республики Татарстан"]
[55,"Якупов ","Тимур","Артемович","2009-12-09","м","нет",6,6,19,100,"Участник","нет","Голованов Владимир Владимирович","Муниципальное бюджетное общеобразовательное учреждение \"Многопрофильный лицей №37\" Нижнекамского муниципального района Республики Татарстан"]
[56,"Шандренкова ","Анастасия","Александровна","2010-07-06","ж","нет",6,6,19,100,"Участник","нет","Голованов Владимир Владимирович","Муниципальное бюджетное общеобразовательное учреждение \"Многопрофильный лицей №37\" Нижнекамского муниципального района Республики Татарстан"]
[57,"Газеева ","Мария ","Маратовна","2010-10-12","ж","нет",6,6,18,100,"Участник","нет","Голованов Владимир Владимирович","Муниципальное бюджетное общеобразовательное учреждение \"Многопрофильный лицей №37\" Нижнекамского муниципального района Республики Татарстан"]
[58,"Салахов ","Айнур","Айратович","2010-11-15","м","нет",6,6,16,100,"Участник","нет","Голованов Владимир Владимирович","Муниципальное бюджетное общеобразовательное учреждение \"Многопрофильный лицей №37\" Нижнекамского муниципального района Республики Татарстан"]
[59,"Подакова ","Полина","Александровна","2010-03-01","ж","нет",6,6,15,100,"Участник","нет","Голованов Владимир Владимирович","Муниципальное бюджетное общеобразовательное учреждение \"Многопрофильный лицей №37\" Нижнекамского муниципального района Республики Татарстан"]
[60,"Ахмеджанов ","Нурсултан","Разумович","2010-04-01","м","нет",6,6,14,100,"Участник","нет","Голованов Владимир Владимирович","Муниципальное бюджетное общеобразовательное учреждение \"Многопрофильный лицей №37\" Нижнекамского муниципального района Республики Татарстан"]
[61,"Фархутдинов ","Карим","Марселевич","2010-07-11","м","нет",6,6,14,100,"Участник","нет","Голованов Владимир Владимирович","Муниципальное бюджетное общеобразовательное учреждение \"Многопрофильный лицей №37\" Нижнекамского муниципального района Республики Татарстан"]
[62,"Хамадвалиева ","Ландыш","Зиннуровна","2010-09-23","ж","нет",6,6,13,100,"Участник","нет","Голованов Владимир Владимирович","Муниципальное бюджетное общеобразовательное учреждение \"Многопрофильный лицей №37\" Нижнекамского муниципального района Республики Татарстан"]
[63,"Матросова ","Кристина","Николаевна","2010-05-04","ж","нет",6,6,10,100,"Участник","нет","Голованов Владимир Владимирович","Муниципальное бюджетное общеобразовательное учреждение \"Многопрофильный лицей №37\" Нижнекамского муниципального района Республики Татарстан"]
[64,"Смолина ","София ","Николаевна","2010-11-06","ж","нет",6,6,10,100,"Участник","нет","Голованов Владимир Владимирович","Муниципальное бюджетное общеобразовательное учреждение \"Многопрофильный лицей №37\" Нижнекамского муниципального района Республики Татарстан"]
[65,"Шумский ","Добрыня","Тимурович","2010-04-05","м","нет",6,6,10,100,"Участник","нет","Голованов Владимир Владимирович","Муниципальное бюджетное общеобразовательное учреждение \"Многопрофильный лицей №37\" Нижнекамского муниципального района Республики Татарстан"]
[66,"Минегулова ","Амалия","Альбертовна","2010-03-14","ж","нет",6,6,8,100,"Участник","нет","Голованов Владимир Владимирович","Муниципальное бюджетное общеобразовательное учреждение \"Многопрофильный лицей №37\" Нижнекамского муниципального района Республики Татарстан"]
[67,"Тронина ","Илона","Сергеевна","2010-05-22","ж","нет",6,6,8,100,"Участник","нет","Голованов Владимир Владимирович","Муниципальное бюджетное общеобразовательное учреждение \"Многопрофильный лицей №37\" Нижнекамского муниципального района Республики Татарстан"]
[68,"Мустафина ","Камилла","Динаровна","2010-06-07","ж","нет",6,6,4,100,"Участник","нет","Голованов Владимир Владимирович","Муниципальное бюджетное общеобразовательное учреждение \"Многопрофильный лицей №37\" Нижнекамского муниципального района Республики Татарстан"]
[69,"Ахмадиваева","Зиля ","Рустемовна","2010-06-07","ж","нет",6,6,3,100,"Участник","нет","Голованов Владимир Владимирович","Муниципальное бюджетное общеобразовательное учреждение \"Многопрофильный лицей №37\" Нижнекамского муниципального района Республики Татарстан"]
[70,"Хусаинов ","Булат","Анисович","2010-10-11","м","нет",6,6,3,100,"Участник","нет","Голованов Владимир Владимирович","Муниципальное бюджетное общеобразовательное учреждение \"Многопрофильный лицей №37\" Нижнекамского муниципального района Республики Татарстан"]
[71,"Гайдуллин","Ярослав","Владимирович","2009-07-24","м","нет",7,{"$f":"H72","v":7},57,100,"Победитель","нет","Голованов Владимир Владимирович","Муниципальное бюджетное общеобразовательное учреждение \"Многопрофильный лицей №37\" Нижнекамского муниципального района Республики Татарстан"]
[72,"Трошина ","Полина","Дмитриевна","2009-10-02","ж","нет",7,7,29,100,"Участник","нет","Голованов Владимир Владимирович","Муниципальное бюджетное общеобразовательное учреждение \"Многопрофильный лицей №37\" Нижнекамского муниципального района Республики Татарстан"]
[73,"Галкина","Дарья ","Александровна","2009-10-29","ж","нет",7,7,24,100,"Участник","нет","Голованов Владимир Владимирович","Муниципальное бюджетное общеобразовательное учреждение \"Многопрофильный лицей №37\" Нижнекамского муниципального района Республики Татарстан"]
[74,"Ибрагимов ","Данис","Азатович","2009-07-22","м","нет",7,7,22,100,"Участник","нет","Голованов Владимир Владимирович","Муниципальное бюджетное общеобразовательное учреждение \"Многопрофильный лицей №37\" Нижнекамского муниципального района Республики Татарстан"]
[75,"Ишкальдина ","Камилла","Вячеславовна","2009-07-23","ж","нет",7,7,18,100,"Участник","нет","Голованов Владимир Владимирович","Муниципальное бюджетное общеобразовательное учреждение \"Многопрофильный лицей №37\" Нижнекамского муниципального района Республики Татарстан"]
[76,"Мингазова","Рената","Ленаровна","2009-10-26","ж","нет",7,7,18,100,"Участник","нет","Голованов Владимир Владимирович","Муниципальное бюджетное общеобразовательное учреждение \"Многопрофильный лицей №37\" Нижнекамского муниципального района Республики Татарстан"]
[77,"Нагорнова ","Виктория","Максимовна","2009-08-28","ж","нет",7,7,16,100,"Участник","нет","Голованов Владимир Владимирович","Муниципальное бюджетное общеобразовательное учреждение \"Многопрофильный лицей №37\" Нижнекамского муниципального района Республики Татарстан"]
[78,"Суходоев ","Кирилл","Павлович","2008-12-28","м","нет",7,7,15,100,"Участник","нет","Голованов Владимир Владимирович","Муниципальное бюджетное общеобразовательное учреждение \"Многопрофильный лицей №37\" Нижнекамского муниципального района Республики Татарстан"]
[79,"Платонова ","Дарья ","Вячеславовна","2009-05-21","ж","нет",7,7,14,100,"Участник","нет","Голованов Владимир Владимирович","Муниципальное бюджетное общеобразовательное учреждение \"Многопрофильный лицей №37\" Нижнекамского муниципального района Республики Татарстан"]
[80,"Абдуллин","Эмир","Эльмарович","2009-01-03","м","нет",7,7,10,100,"Участник","нет","Голованов Владимир Владимирович","Муниципальное бюджетное общеобразовательное учреждение \"Многопрофильный лицей №37\" Нижнекамского муниципального района Республики Татарстан"]
[81,{"$f":"'[1]7В'!B2","v":"Ильясова  "},{"$f":"'[1]7В'!C2","v":"Алина "},{"$f":"'[1]7В'!D2","v":"Фанилевна"},{"$f":"'[1]7В'!E2","v":"2009-06-13"},{"$f":"'[1]7В'!F2","v":"Ж"},{"$f":"'[1]7В'!G2","v":"нет"},7,7,{"$f":"'[1]7В'!J2","v":53},{"$f":"'[1]7В'!K2","v":100},{"$f":"'[1]7В'!L2","v":"Призер"},{"$f":"'[1]7В'!M2","v":"нет"},{"$f":"'[1]7В'!N2","v":"Ахметова Римма Масхутовна"},"Муниципальное бюджетное общеобразовательное учреждение \"Многопрофильный лицей №37\" Нижнекамского муниципального района Республики Татарстан"]
[82,{"$f":"'[1]7В'!B3","v":"Хузин "},{"$f":"'[1]7В'!C3","v":"Риан "},{"$f":"'[1]7В'!D3","v":"Робертович"},{"$f":"'[1]7В'!E3","v":"2009-02-25"},{"$f":"'[1]7В'!F3","v":"М"},{"$f":"'[1]7В'!G3","v":"нет"},7,7,{"$f":"'[1]7В'!J3","v":52},{"$f":"'[1]7В'!K3","v":100},{"$f":"'[1]7В'!L3","v":"Призер"},{"$f":"'[1]7В'!M3","v":"нет"},{"$f":"'[1]7В'!N3","v":"Ахметова Римма Масхутовна"},"Муниципальное бюджетное общеобразовательное учреждение \"Многопрофильный лицей №37\" Нижнекамского муниципального района Республики Татарстан"]
[83,{"$f":"'[1]7В'!B4","v":"Минахметов "},{"$f":"'[1]7В'!C4","v":"Марат "},{"$f":"'[1]7В'!D4","v":"Ибрагимович "},{"$f":"'[1]7В'!E4","v":"2009-09-17"},{"$f":"'[1]7В'!F4","v":"М"},{"$f":"'[1]7В'!G4","v":"нет"},7,7,{"$f":"'[1]7В'!J4","v":40},{"$f":"'[1]7В'!K4","v":100},{"$f":"'[1]7В'!L4","v":"Участник"},{"$f":"'[1]7В'!M4","v":"нет"},{"$f":"'[1]7В'!N4","v":"Ахметова Римма Масхутовна"},"Муниципальное бюджетное общеобразовательное учреждение \"Многопрофильный лицей №37\" Нижнекамского муниципального района Республики Татарстан"]
[84,{"$f":"'[1]7В'!B5","v":"Сафина "},{"$f":"'[1]7В'!C5","v":"Эльвина"},{"$f":"'[1]7В'!D5","v":" Ильшатовна"},{"$f":"'[1]7В'!E5","v":"2009-07-15"},{"$f":"'[1]7В'!F5","v":"Ж"},{"$f":"'[1]7В'!G5","v":"нет"},7,7,{"$f":"'[1]7В'!J5","v":36},{"$f":"'[1]7В'!K5","v":100},{"$f":"'[1]7В'!L5","v":"Участник"},{"$f":"'[1]7В'!M5","v":"нет"},{"$f":"'[1]7В'!N5","v":"Ахметова Римма Масхутовна"},"Муниципальное бюджетное общеобразовательное учреждение \"Многопрофильный лицей №37\" Нижнекамского муниципального района Республики Татарстан"]
[85,{"$f":"'[1]7В'!B6","v":"Каримова"},{"$f":"'[1]7В'!C6","v":" Индира "},{"$f":"'[1]7В'!D6","v":"Ленаровна "},{"$f":"'[1]7В'!E6","v":"2009-09-25"},{"$f":"'[1]7В'!F6","v":"Ж"},{"$f":"'[1]7В'!G6","v":"нет"},7,7,{"$f":"'[1]7В'!J6","v":33},{"$f":"'[1]7В'!K6","v":100},{"$f":"'[1]7В'!L6","v":"Участник"},{"$f":"'[1]7В'!M6","v":"нет"},{"$f":"'[1]7В'!N6","v":"Ахметова Римма Масхутовна"},"Муниципальное бюджетное общеобразовательное учреждение \"Многопрофильный лицей №37\" Нижнекамского муниципального района Республики Татарстан"]
[86,{"$f":"'[1]7В'!B7","v":"Имамиева"},{"$f":"'[1]7В'!C7","v":" Камилла "},{"$f":"'[1]7В'!D7","v":"Ришатовна"},{"$f":"'[1]7В'!E7","v":"2009-07-10"},{"$f":"'[1]7В'!F7","v":"Ж"},{"$f":"'[1]7В'!G7","v":"нет"},7,7,{"$f":"'[1]7В'!J7","v":30},{"$f":"'[1]7В'!K7","v":100},{"$f":"'[1]7В'!L7","v":"Участник"},{"$f":"'[1]7В'!M7","v":"нет"},{"$f":"'[1]7В'!N7","v":"Ахметова Римма Масхутовна"},"Муниципальное бюджетное общеобразовательное учреждение \"Многопрофильный лицей №37\" Нижнекамского муниципального района Республики Татарстан"]
[87,{"$f":"'[1]7В'!B8","v":"Гирфанов "},{"$f":"'[1]7В'!C8","v":"Тимур "},{"$f":"'[1]7В'!D8","v":"Ильдарович"},{"$f":"'[1]7В'!E8","v":"2009-01-09"},{"$f":"'[1]7В'!F8","v":"М"},{"$f":"'[1]7В'!G8","v":"нет"},7,7,{"$f":"'[1]7В'!J8","v":23},{"$f":"'[1]7В'!K8","v":100},{"$f":"'[1]7В'!L8","v":"Участник"},{"$f":"'[1]7В'!M8","v":"нет"},{"$f":"'[1]7В'!N8","v":"Ахметова Римма Масхутовна"},"Муниципальное бюджетное общеобразовательное учреждение \"Многопрофильный лицей №37\" Нижнекамского муниципального района Республики Татарстан"]
[88,{"$f":"'[1]7В'!B9","v":"Фаттахов "},{"$f":"'[1]7В'!C9","v":"Данис "},{"$f":"'[1]7В'!D9","v":"Раисович"},{"$f":"'[1]7В'!E9","v":"2009-07-15"},{"$f":"'[1]7В'!F9","v":"М"},{"$f":"'[1]7В'!G9","v":"нет"},7,7,{"$f":"'[1]7В'!J9","v":21},{"$f":"'[1]7В'!K9","v":100},{"$f":"'[1]7В'!L9","v":"Участник"},{"$f":"'[1]7В'!M9","v":"нет"},{"$f":"'[1]7В'!N9","v":"Ахметова Римма Масхутовна"},"Муниципальное бюджетное общеобразовательное учреждение \"Многопрофильный лицей №37\" Нижнекамского муниципального района Республики Татарстан"]
[89,{"$f":"'[1]7В'!B10","v":"Алиева "},{"$f":"'[1]7В'!C10","v":"Айгуль "},{"$f":"'[1]7В'!D10","v":"Айратовна"},{"$f":"'[1]7В'!E10","v":"2009-02-09"},{"$f":"'[1]7В'!F10","v":"Ж"},{"$f":"'[1]7В'!G10","v":"нет"},7,7,{"$f":"'[1]7В'!J10","v":18},{"$f":"'[1]7В'!K10","v":100},{"$f":"'[1]7В'!L10","v":"Участник"},{"$f":"'[1]7В'!M10","v":"нет"},{"$f":"'[1]7В'!N10","v":"Ахметова Римма Масхутовна"},"Муниципальное бюджетное общеобразовательное учреждение \"Многопрофильный лицей №37\" Нижнекамского муниципального района Республики Татарстан"]
[90,{"$f":"'[1]7В'!B11","v":"Фаттахова "},{"$f":"'[1]7В'!C11","v":"Лейла "},{"$f":"'[1]7В'!D11","v":"Ильшатовна"},{"$f":"'[1]7В'!E11","v":"2009-10-01"},{"$f":"'[1]7В'!F11","v":"Ж"},{"$f":"'[1]7В'!G11","v":"нет"},7,7,{"$f":"'[1]7В'!J11","v":18},{"$f":"'[1]7В'!K11","v":100},{"$f":"'[1]7В'!L11","v":"Участник"},{"$f":"'[1]7В'!M11","v":"нет"},{"$f":"'[1]7В'!N11","v":"Ахметова Римма Масхутовна"},"Муниципальное бюджетное общеобразовательное учреждение \"Многопрофильный лицей №37\" Нижнекамского муниципального района Республики Татарстан"]
[91,{"$f":"'[1]7В'!B12","v":"Шакирова  "},{"$f":"'[1]7В'!C12","v":"Динара"},{"$f":"'[1]7В'!D12","v":"Рамилевна"},{"$f":"'[1]7В'!E12","v":"2009-10-29"},{"$f":"'[1]7В'!F12","v":"Ж"},{"$f":"'[1]7В'!G12","v":"нет"},7,7,{"$f":"'[1]7В'!J12","v":17},{"$f":"'[1]7В'!K12","v":100},{"$f":"'[1]7В'!L12","v":"Участник"},{"$f":"'[1]7В'!M12","v":"нет"},{"$f":"'[1]7В'!N12","v":"Ахметова Римма Масхутовна"},"Муниципальное бюджетное общеобразовательное учреждение \"Многопрофильный лицей №37\" Нижнекамского муниципального района Республики Татарстан"]
[92,{"$f":"'[1]7В'!B13","v":"Ахметов "},{"$f":"'[1]7В'!C13","v":"Динар"},{"$f":"'[1]7В'!D13","v":" Фанилович"},{"$f":"'[1]7В'!E13","v":"2009-09-14"},{"$f":"'[1]7В'!F13","v":"М"},{"$f":"'[1]7В'!G13","v":"нет"},7,7,{"$f":"'[1]7В'!J13","v":16},{"$f":"'[1]7В'!K13","v":100},{"$f":"'[1]7В'!L13","v":"Участник"},{"$f":"'[1]7В'!M13","v":"нет"},{"$f":"'[1]7В'!N13","v":"Ахметова Римма Масхутовна"},"Муниципальное бюджетное общеобразовательное учреждение \"Многопрофильный лицей №37\" Нижнекамского муниципального района Республики Татарстан"]
[93,{"$f":"'[1]7В'!B14","v":"Гильманова "},{"$f":"'[1]7В'!C14","v":"Самина "},{"$f":"'[1]7В'!D14","v":"Рустемовна "},{"$f":"'[1]7В'!E14","v":"2009-01-06"},{"$f":"'[1]7В'!F14","v":"Ж"},{"$f":"'[1]7В'!G14","v":"нет"},7,7,{"$f":"'[1]7В'!J14","v":16},{"$f":"'[1]7В'!K14","v":100},{"$f":"'[1]7В'!L14","v":"Участник"},{"$f":"'[1]7В'!M14","v":"нет"},{"$f":"'[1]7В'!N14","v":"Ахметова Римма Масхутовна"},"Муниципальное бюджетное общеобразовательное учреждение \"Многопрофильный лицей №37\" Нижнекамского муниципального района Республики Татарстан"]
[94,{"$f":"'[1]7В'!B15","v":"Усманова "},{"$f":"'[1]7В'!C15","v":"Малика"},{"$f":"'[1]7В'!D15","v":" Айратовна"},{"$f":"'[1]7В'!E15","v":"2009-09-26"},{"$f":"'[1]7В'!F15","v":"Ж"},{"$f":"'[1]7В'!G15","v":"нет"},7,7,{"$f":"'[1]7В'!J15","v":13},{"$f":"'[1]7В'!K15","v":100},{"$f":"'[1]7В'!L15","v":"Участник"},{"$f":"'[1]7В'!M15","v":"нет"},{"$f":"'[1]7В'!N15","v":"Ахметова Римма Масхутовна"},"Муниципальное бюджетное общеобразовательное учреждение \"Многопрофильный лицей №37\" Нижнекамского муниципального района Республики Татарстан"]
[95,{"$f":"'[1]7В'!B16","v":"Хасанов "},{"$f":"'[1]7В'!C16","v":"Хасан"},{"$f":"'[1]7В'!D16","v":" Маратович"},{"$f":"'[1]7В'!E16","v":"2009-11-25"},{"$f":"'[1]7В'!F16","v":"М"},{"$f":"'[1]7В'!G16","v":"нет"},7,7,{"$f":"'[1]7В'!J16","v":13},{"$f":"'[1]7В'!K16","v":100},{"$f":"'[1]7В'!L16","v":"Участник"},{"$f":"'[1]7В'!M16","v":"нет"},{"$f":"'[1]7В'!N16","v":"Ахметова Римма Масхутовна"},"Муниципальное бюджетное общеобразовательное учреждение \"Многопрофильный лицей №37\" Нижнекамского муниципального района Республики Татарстан"]
[96,{"$f":"'[1]7В'!B17","v":"Гилметдинов "},{"$f":"'[1]7В'!C17","v":"Айнур "},{"$f":"'[1]7В'!D17","v":"Ильнурович "},{"$f":"'[1]7В'!E17","v":"2009-07-28"},{"$f":"'[1]7В'!F17","v":"М"},{"$f":"'[1]7В'!G17","v":"нет"},7,7,{"$f":"'[1]7В'!J17","v":12},{"$f":"'[1]7В'!K17","v":100},{"$f":"'[1]7В'!L17","v":"Участник"},{"$f":"'[1]7В'!M17","v":"нет"},{"$f":"'[1]7В'!N17","v":"Ахметова Римма Масхутовна"},"Муниципальное бюджетное общеобразовательное учреждение \"Многопрофильный лицей №37\" Нижнекамского муниципального района Республики Татарстан"]
[97,{"$f":"'[1]7В'!B18","v":"Давлетшина "},{"$f":"'[1]7В'!C18","v":"Диляра "},{"$f":"'[1]7В'!D18","v":"Альбертовна "},{"$f":"'[1]7В'!E18","v":"2009-06-24"},{"$f":"'[1]7В'!F18","v":"Ж"},{"$f":"'[1]7В'!G18","v":"нет"},7,7,{"$f":"'[1]7В'!J18","v":11},{"$f":"'[1]7В'!K18","v":100},{"$f":"'[1]7В'!L18","v":"Участник"},{"$f":"'[1]7В'!M18","v":"нет"},{"$f":"'[1]7В'!N18","v":"Ахметова Римма Масхутовна"},"Муниципальное бюджетное общеобразовательное учреждение \"Многопрофильный лицей №37\" Нижнекамского муниципального района Республики Татарстан"]
[98,{"$f":"'[1]7В'!B19","v":"Шагиев "},{"$f":"'[1]7В'!C19","v":"Расим "},{"$f":"'[1]7В'!D19","v":"Рашитович"},{"$f":"'[1]7В'!E19","v":"2008-11-28"},{"$f":"'[1]7В'!F19","v":"М"},{"$f":"'[1]7В'!G19","v":"нет"},7,7,{"$f":"'[1]7В'!J19","v":11},{"$f":"'[1]7В'!K19","v":100},{"$f":"'[1]7В'!L19","v":"Участник"},{"$f":"'[1]7В'!M19","v":"нет"},{"$f":"'[1]7В'!N19","v":"Ахметова Римма Масхутовна"},"Муниципальное бюджетное общеобразовательное учреждение \"Многопрофильный лицей №37\" Нижнекамского муниципального района Республики Татарстан"]
[99,{"$f":"'[1]7В'!B20","v":"Гимранов "},{"$f":"'[1]7В'!C20","v":"Булат "},{"$f":"'[1]7В'!D20","v":"Радисович"},{"$f":"'[1]7В'!E20","v":"2009-06-02"},{"$f":"'[1]7В'!F20","v":"М"},{"$f":"'[1]7В'!G20","v":"нет"},7,7,{"$f":"'[1]7В'!J20","v":9},{"$f":"'[1]7В'!K20","v":100},{"$f":"'[1]7В'!L20","v":"Участник"},{"$f":"'[1]7В'!M20","v":"нет"},{"$f":"'[1]7В'!N20","v":"Ахметова Римма Масхутовна"},"Муниципальное бюджетное общеобразовательное учреждение \"Многопрофильный лицей №37\" Нижнекамского муниципального района Республики Татарстан"]
[100,{"$f":"'[1]7В'!B21","v":"Махмутов "},{"$f":"'[1]7В'!C21","v":"Андрей "},{"$f":"'[1]7В'!D21","v":"Васильевич"},{"$f":"'[1]7В'!E21","v":"2008-11-17"},{"$f":"'[1]7В'!F21","v":"М"},{"$f":"'[1]7В'!G21","v":"нет"},7,7,{"$f":"'[1]7В'!J21","v":5},{"$f":"'[1]7В'!K21","v":100},{"$f":"'[1]7В'!L21","v":"Участник"},{"$f":"'[1]7В'!M21","v":"нет"},{"$f":"'[1]7В'!N21","v":"Ахметова Римма Масхутовна"},"Муниципальное бюджетное общеобразовательное учреждение \"Многопрофильный лицей №37\" Нижнекамского муниципального района Республики Татарстан"]
[101,"Зяббаров","Дамир","Айратович","2009-04-03","М","нет",7,7,5,100,"Участник","нет","Голованов Владимир Владимирович","Муниципальное бюджетное общеобразовательное учреждение \"Многопрофильный лицей №37\" Нижнекамского муниципального района Республики Татарстан"]
[102,"Темиргазина","Динара","Данилевна","2008-08-10","Ж","нет",8,8,58,100,"Победитель","нет","Савельева Ольга Ивановна","Муниципальное бюджетное общеобразовательное учреждение \"Многопрофильный лицей №37\" Нижнекамского муниципального района Республики Татарстан"]
[103,"Павлов","Ярослав","Павлович","2008-06-07","М","нет",8,8,52,100,"Призер","нет","Савельева Ольга Ивановна","Муниципальное бюджетное общеобразовательное учреждение \"Многопрофильный лицей №37\" Нижнекамского муниципального района Республики Татарстан"]
[104,"Савельев","Иван","Игоревич","2008-06-05","М","нет",8,8,49,100,"Участник","нет","Савельева Ольга Ивановна","Муниципальное бюджетное общеобразовательное учреждение \"Многопрофильный лицей №37\" Нижнекамского муниципального района Республики Татарстан"]
[105,"Яфаров","Данил","Рафисович","2008-03-25","М","нет",8,8,44,100,"Участник","нет","Савельева Ольга Ивановна","Муниципальное бюджетное общеобразовательное учреждение \"Многопрофильный лицей №37\" Нижнекамского муниципального района Республики Татарстан"]
[106,"Никифорова","Ангелина","Артемовна","2008-01-28","Ж","нет",8,8,41,100,"Участник","нет","Савельева Ольга Ивановна","Муниципальное бюджетное общеобразовательное учреждение \"Многопрофильный лицей №37\" Нижнекамского муниципального района Республики Татарстан"]
[107,"Шихранова","Ульяна","Алексеевна","2008-11-07","Ж","нет",8,8,39,100,"Участник","нет","Савельева Ольга Ивановна","Муниципальное бюджетное общеобразовательное учреждение \"Многопрофильный лицей №37\" Нижнекамского муниципального района Республики Татарстан"]
[108,"Кямякова","Камилла","Вагизовна","2008-02-28","Ж","нет",8,8,38,100,"Участник","нет","Савельева Ольга Ивановна","Муниципальное бюджетное общеобразовательное учреждение \"Многопрофильный лицей №37\" Нижнекамского муниципального района Республики Татарстан"]
[109,"Крутикова","Елизавета ","Александровна","2008-03-14","Ж","нет",8,8,36,100,"Участник","нет","Савельева Ольга Ивановна","Муниципальное бюджетное общеобразовательное учреждение \"Многопрофильный лицей №37\" Нижнекамского муниципального района Республики Татарстан"]
[110,"Бобровская","Алла","Сергеевна","2008-07-21","Ж","нет",8,8,36,100,"Участник","нет","Савельева Ольга Ивановна","Муниципальное бюджетное общеобразовательное учреждение \"Многопрофильный лицей №37\" Нижнекамского муниципального района Республики Татарстан"]
[111,"Чесаков ","Артур","Альбертович","2008-11-02","М","нет",8,8,27,100,"Участник","нет","Савельева Ольга Ивановна","Муниципальное бюджетное общеобразовательное учреждение \"Многопрофильный лицей №37\" Нижнекамского муниципального района Республики Татарстан"]
[112,"Куфтерин","Максим","Алексеевич","2008-01-25","М","нет",8,8,17,100,"Участник","нет","Савельева Ольга Ивановна","Муниципальное бюджетное общеобразовательное учреждение \"Многопрофильный лицей №37\" Нижнекамского муниципального района Республики Татарстан"]
[113,"Садыков","Рамиль","Русланович","2008-08-04","М","нет",8,8,17,100,"Участник","нет","Савельева Ольга Ивановна","Муниципальное бюджетное общеобразовательное учреждение \"Многопрофильный лицей №37\" Нижнекамского муниципального района Республики Татарстан"]
[114,"Виноградова","Анастасия","Сергеевна","2008-05-12","Ж","нет",8,8,17,100,"Участник","нет","Голованов Владимир Владимирович","Муниципальное бюджетное общеобразовательное учреждение \"Многопрофильный лицей №37\" Нижнекамского муниципального района Республики Татарстан"]
[115,"Даутов ","Булат","Романович","2008-03-23","М","нет",8,8,16,100,"Участник","нет","Голованов Владимир Владимирович","Муниципальное бюджетное общеобразовательное учреждение \"Многопрофильный лицей №37\" Нижнекамского муниципального района Республики Татарстан"]
[116,"Седышев","Данил","Павлович","2008-10-20","М","нет",8,8,16,100,"Участник","нет","Голованов Владимир Владимирович","Муниципальное бюджетное общеобразовательное учреждение \"Многопрофильный лицей №37\" Нижнекамского муниципального района Республики Татарстан"]
[117,"Гарифуллина","Алсу","Рафисовна","2008-04-29","Ж","нет",8,8,15,100,"Участник","нет","Савельева Ольга Ивановна","Муниципальное бюджетное общеобразовательное учреждение \"Многопрофильный лицей №37\" Нижнекамского муниципального района Республики Татарстан"]
[118,"Аскарова ","Диляра","Илдаровна","2008-06-28","Ж","нет",8,8,15,100,"Участник","нет","Голованов Владимир Владимирович","Муниципальное бюджетное общеобразовательное учреждение \"Многопрофильный лицей №37\" Нижнекамского муниципального района Республики Татарстан"]
[119,"Габдрахимова ","Элина","Ильдаровна","2008-04-13","Ж","нет",8,8,14,100,"Участник","нет","Савельева Ольга Ивановна","Муниципальное бюджетное общеобразовательное учреждение \"Многопрофильный лицей №37\" Нижнекамского муниципального района Республики Татарстан"]
[120,"Юртова ","Олеся","Петровна","2008-01-17","Ж","нет",8,8,14,100,"Участник","нет","Голованов Владимир Владимирович","Муниципальное бюджетное общеобразовательное учреждение \"Многопрофильный лицей №37\" Нижнекамского муниципального района Республики Татарстан"]
[121,"Антипова","Ксения","Руслановна","2008-08-07","Ж","нет",8,8,10,100,"Участник","нет","Савельева Ольга Ивановна","Муниципальное бюджетное общеобразовательное учреждение \"Многопрофильный лицей №37\" Нижнекамского муниципального района Республики Татарстан"]
[122,"Смирнов","Артем ","Сергеевич","2007-08-27","М","нет",9,9,58,100,"Победитель","нет","Голованов Владимир Владимирович","Муниципальное бюджетное общеобразовательное учреждение \"Многопрофильный лицей №37\" Нижнекамского муниципального района Республики Татарстан"]
[123,"Шагина","Лилия","Марселевна","2007-11-19","Ж","нет",9,9,25,100,"Участник","нет","Голованов Владимир Владимирович","Муниципальное бюджетное общеобразовательное учреждение \"Многопрофильный лицей №37\" Нижнекамского муниципального района Республики Татарстан"]
[124,"Горин","Петр","Олегович","2007-07-13","М","нет",9,9,18,100,"Участник","нет","Голованов Владимир Владимирович","Муниципальное бюджетное общеобразовательное учреждение \"Многопрофильный лицей №37\" Нижнекамского муниципального района Республики Татарстан"]
[125,"Ломов","Кирилл","Евгеньевич","2007-05-17","М","нет",9,9,18,100,"Участник","нет","Голованов Владимир Владимирович","Муниципальное бюджетное общеобразовательное учреждение \"Многопрофильный лицей №37\" Нижнекамского муниципального района Республики Татарстан"]
[126,"Бардашов ","Матвей","Сергеевич","2007-07-13","М","нет",9,9,14,100,"Участник","нет","Голованов Владимир Владимирович","Муниципальное бюджетное общеобразовательное учреждение \"Многопрофильный лицей №37\" Нижнекамского муниципального района Республики Татарстан"]
[127,"Юзеев ","Вячеслав","Владиславович","2007-06-15","М","нет",9,9,12,100,"Участник","нет","Голованов Владимир Владимирович","Муниципальное бюджетное общеобразовательное учреждение \"Многопрофильный лицей №37\" Нижнекамского муниципального района Республики Татарстан"]
[128,"Волков","Никита","Витальевич","2007-08-30","М","нет",9,9,10,100,"Участник","нет","Голованов Владимир Владимирович","Муниципальное бюджетное общеобразовательное учреждение \"Многопрофильный лицей №37\" Нижнекамского муниципального района Республики Татарстан"]
[129,"Солодовников","Матвей","Алексеевич","2007-02-16","М","нет",9,9,9,100,"Участник","нет","Голованов Владимир Владимирович","Муниципальное бюджетное общеобразовательное учреждение \"Многопрофильный лицей №37\" Нижнекамского муниципального района Республики Татарстан"]
[130,"Васильева ","Альяна","Олеговна","2007-05-12","М","нет",9,9,8,100,"Участник","нет","Голованов Владимир Владимирович","Муниципальное бюджетное общеобразовательное учреждение \"Многопрофильный лицей №37\" Нижнекамского муниципального района Республики Татарстан"]
[131,"Софронова","Софья","Вячеславовна","2007-04-11","Ж","нет",9,9,7,100,"Участник","нет","Голованов Владимир Владимирович","Муниципальное бюджетное общеобразовательное учреждение \"Многопрофильный лицей №37\" Нижнекамского муниципального района Республики Татарстан"]
[132,"Лебедева","Вероника","Андреевна","2005-12-05","Ж","нет",10,10,82,100,"Победитель","да","Савельева Ольга Ивановна","Муниципальное бюджетное общеобразовательное учреждение \"Многопрофильный лицей №37\" Нижнекамского муниципального района Республики Татарстан"]
[133,"Плеханов ","Олег","Владимирович","2006-05-29","М","нет",10,10,32,100,"Участник","нет","Савельева Ольга Ивановна","Муниципальное бюджетное общеобразовательное учреждение \"Многопрофильный лицей №37\" Нижнекамского муниципального района Республики Татарстан"]
[134,"Юртова ","Анастасия","Петровна","2006-10-20","Ж","нет",10,10,28,100,"Участник","нет","Савельева Ольга Ивановна","Муниципальное бюджетное общеобразовательное учреждение \"Многопрофильный лицей №37\" Нижнекамского муниципального района Республики Татарстан"]
[135,"Кузнецов","Никита","Артемович","2006-01-18","М","нет",10,10,21,100,"Участник","нет","Савельева Ольга Ивановна","Муниципальное бюджетное общеобразовательное учреждение \"Многопрофильный лицей №37\" Нижнекамского муниципального района Республики Татарстан"]
[136,"Каранаева","Диана","Вадимовна","2006-10-20","Ж","нет",10,10,21,100,"Участник","нет","Савельева Ольга Ивановна","Муниципальное бюджетное общеобразовательное учреждение \"Многопрофильный лицей №37\" Нижнекамского муниципального района Республики Татарстан"]
[137,"Латыпова","Лия ","Марселевна","2006-09-24","Ж","нет",10,10,17,100,"Участник","нет","Савельева Ольга Ивановна","Муниципальное бюджетное общеобразовательное учреждение \"Многопрофильный лицей №37\" Нижнекамского муниципального района Республики Татарстан"]
[138,"Фофонова","Юлия","Артемовна","2006-07-12","Ж","нет",10,10,17,100,"Участник","нет","Савельева Ольга Ивановна","Муниципальное бюджетное общеобразовательное учреждение \"Многопрофильный лицей №37\" Нижнекамского муниципального района Республики Татарстан"]
[139,"Шарафиев","Айнур","Назилевич","2006-06-16","М","нет",10,10,17,100,"Участник","нет","Савельева Ольга Ивановна","Муниципальное бюджетное общеобразовательное учреждение \"Многопрофильный лицей №37\" Нижнекамского муниципального района Республики Татарстан"]
[140,"Митрофанова","Дарья","Сергеевна","2006-12-18","Ж","нет",10,10,17,100,"Участник","нет","Савельева Ольга Ивановна","Муниципальное бюджетное общеобразовательное учреждение \"Многопрофильный лицей №37\" Нижнекамского муниципального района Республики Татарстан"]
[141,"Сибгатуллин","Марат ","Фанисович","2005-10-27","М","нет",10,10,16,100,"Участник","нет","Савельева Ольга Ивановна","Муниципальное бюджетное общеобразовательное учреждение \"Многопрофильный лицей №37\" Нижнекамского муниципального района Республики Татарстан"]
[142,"Музафарова","Камилла","Ленаровна","2006-10-03","Ж","нет",10,10,10,100,"Участник","нет","Савельева Ольга Ивановна","Муниципальное бюджетное общеобразовательное учреждение \"Многопрофильный лицей №37\" Нижнекамского муниципального района Республики Татарстан"]
[143,"Валиев","Анвар","Искандерович","2006-01-11","М","нет",10,10,6,100,"Участник","нет","Савельева Ольга Ивановна","Муниципальное бюджетное общеобразовательное учреждение \"Многопрофильный лицей №37\" Нижнекамского муниципального района Республики Татарстан"]
[144,"Васильева ","Дарья ","Викторовна","2006-01-21","Ж","нет",10,10,6,100,"Участник","нет","Савельева Ольга Ивановна","Муниципальное бюджетное общеобразовательное учреждение \"Многопрофильный лицей №37\" Нижнекамского муниципального района Республики Татарстан"]
[145,"Гудошников","Никита","Алексеевич","2005-05-04","М","нет",11,11,51,100,"Призер","нет","Савельева Ольга Ивановна","Муниципальное бюджетное общеобразовательное учреждение \"Многопрофильный лицей №37\" Нижнекамского муниципального района Республики Татарстан"]
[146,"Халин","Артур","Александрович","2005-10-21","М","нет",11,11,31,100,"Участник","нет","Савельева Ольга Ивановна","Муниципальное бюджетное общеобразовательное учреждение \"Многопрофильный лицей №37\" Нижнекамского муниципального района Республики Татарстан"]
[147,"Валиева","Эльвира","Айдаровна","2005-10-07","Ж","нет",11,11,20,100,"Участник","нет","Савельева Ольга Ивановна","Муниципальное бюджетное общеобразовательное учреждение \"Многопрофильный лицей №37\" Нижнекамского муниципального района Республики Татарстан"]
[148,"Гатауллина","Динара","Илназовна","2005-06-18","Ж","нет",11,11,18,100,"Участник","нет","Савельева Ольга Ивановна","Муниципальное бюджетное общеобразовательное учреждение \"Многопрофильный лицей №37\" Нижнекамского муниципального района Республики Татарстан"]
[149,"Ахметшина","Алина ","Азатовна","2005-02-23","Ж","нет",11,11,16,100,"Участник","нет","Савельева Ольга Ивановна","Муниципальное бюджетное общеобразовательное учреждение \"Многопрофильный лицей №37\" Нижнекамского муниципального района Республики Татарстан"]
[150,"Мубаракшин","Данис","Рустемович","2005-02-05","М","нет",11,11,15,100,"Участник","нет","Савельева Ольга Ивановна","Муниципальное бюджетное общеобразовательное учреждение \"Многопрофильный лицей №37\" Нижнекамского муниципального района Республики Татарстан"]
[151,"Старостина","Полина","Максимовна","2005-04-05","Ж","нет",11,11,15,100,"Участник","нет","Савельева Ольга Ивановна","Муниципальное бюджетное общеобразовательное учреждение \"Многопрофильный лицей №37\" Нижнекамского муниципального района Республики Татарстан"]
[152,"Хуснутдинова","Камилла","Маратовна","2005-06-11","Ж","нет",11,11,15,100,"Участник","нет","Савельева Ольга Ивановна","Муниципальное бюджетное общеобразовательное учреждение \"Многопрофильный лицей №37\" Нижнекамского муниципального района Республики Татарстан"]
[153,"Алексеева","Виктория","Андреевна","2005-03-25","Ж","нет",11,11,15,100,"Участник","нет","Савельева Ольга Ивановна","Муниципальное бюджетное общеобразовательное учреждение \"Многопрофильный лицей №37\" Нижнекамского муниципального района Республики Татарстан"]
[154,"Салахова","Азалия","Ильшатовна","2005-12-07","Ж","нет",11,11,14,100,"Участник","нет","Савельева Ольга Ивановна","Муниципальное бюджетное общеобразовательное учреждение \"Многопрофильный лицей №37\" Нижнекамского муниципального района Республики Татарстан"]
[155,"Шайхутдинова","Диана","Фиргатовна","2005-05-07","Ж","нет",11,11,12,100,"Участник","нет","Савельева Ольга Ивановна","Муниципальное бюджетное общеобразовательное учреждение \"Многопрофильный лицей №37\" Нижнекамского муниципального района Республики Татарстан"]
[156,"Спиридонова","Анастасия","Владиславовна","2005-01-28","Ж","нет",11,11,11,100,"Участник","нет","Савельева Ольга Ивановна","Муниципальное бюджетное общеобразовательное учреждение \"Многопрофильный лицей №37\" Нижнекамского муниципального района Республики Татарстан"]
[157,"Ягудина","Нурия","Анасовна","2005-03-25","Ж","нет",11,11,10,100,"Участник","нет","Савельева Ольга Ивановна","Муниципальное бюджетное общеобразовательное учреждение \"Многопрофильный лицей №37\" Нижнекамского муниципального района Республики Татарстан"]